lending/lending_fUSD_20240810
["ID","MTS","AMOUNT","RATE_DAILY","PERIOD"]
[334604698,1723323048765,-247.519386,0.00021,2]
[334604699,1723323048775,-3825.455273,0.00021,2]
[334604700,1723323048784,-3825.45527,0.00021,2]
[334604701,1723323048793,-234.831309,0.00021,2]
[334604702,1723323048802,-234.831305,0.00021,2]
[334604703,1723323048811,-155.0,0.0002102,5]
[334604704,1723323048820,-793.0,0.0002106,2]
[334604705,1723323048830,-793.0,0.0002106,2]
[334604706,1723323048840,-1000.0,0.00021106,2]
[334604707,1723323048849,-1000.0,0.0002111,2]
[334604708,1723323048859,-362.75394726,0.00021142,2]
[334604709,1723323048868,-540.71286127,0.00021144,2]
[334604710,1723323048877,-211.0,0.0002115,2]
[334604711,1723323048889,-170.64005521,0.00021164,2]
[334604712,1723323048898,-500.0,0.00021164,2]
[334604713,1723323048907,-500.0,0.00021182,2]
[334604714,1723323048916,-600.0,0.00021218,2]
[334604715,1723323048926,-500.0,0.00021302,2]
[334604716,1723323048935,-500.0,0.00021311,2]
[334604717,1723323048944,-500.0,0.00021342,2]
[334604718,1723323048954,-500.0,0.00021355,2]
[334604719,1723323048963,-340.93,0.0002137,2]
[334604720,1723323048972,-1000.0,0.000215,2]
[334604721,1723323048981,-500.0,0.00021503,2]
[334604722,1723323048991,-500.0,0.0002151,2]
[334604723,1723323049000,-2037.02,0.000216,2]
[334604724,1723323049009,-600.0,0.00021614,2]
[334604725,1723323049018,-500.0,0.00021671,2]
[334604726,1723323049027,-1000.0,0.00021672,2]
[334604727,1723323049036,-308.4,0.0002172,2]
[334604728,1723323049046,-151.0,0.0002177,2]
[334604729,1723323049055,-640.71,0.00021776,2]
[334604730,1723323049066,-500.0,0.00021801,2]
[334604731,1723323049075,-500.0,0.00021824,2]
[334604732,1723323049084,-1000.0,0.00021848,2]
[334604733,1723323049094,-500.0,0.00021873,2]
[334604734,1723323049103,-500.0,0.000219,2]
[334604735,1723323049112,-495.0,0.000219,2]
[334604736,1723323049121,-200.0,0.000219,2]
[334604737,1723323049132,-486.61,0.000219,7]
[334604738,1723323049141,-3637.0,0.000219,2]
[334604739,1723323049151,-2000.0,0.000219,2]
[334604740,1723323049160,-500.0,0.00021908,2]
[334604741,1723323049170,-50000.0,0.00021916,4]
[334604742,1723323049179,-170.85,0.00021918,2]
[334604743,1723323049188,-150.0,0.00021918,2]
[334604744,1723323049197,-151.0,0.00021918,2]
[334604745,1723323049206,-151.0,0.00021918,2]
[334604746,1723323049216,-3533.55,0.00021918,2]
[334604747,1723323049225,-500.0,0.00021918,2]
[334604748,1723323049234,-500.0,0.00021918,2]
[334604749,1723323049243,-500.0,0.00021918,2]
[334604750,1723323049252,-500.0,0.00021918,2]
[334604751,1723323049261,-500.0,0.00021918,2]
[334604752,1723323049270,-500.0,0.00021918,2]
[334604753,1723323049279,-150.0,0.00021918,2]
[334604754,1723323049288,-159.10734738,0.00021918,2]
[334604755,1723323049298,-200.18640293,0.00021918,2]
[334604756,1723323049307,-182.44255879,0.00021918,2]
[334604757,1723323049317,-211.0,0.0002192,2]
[334604758,1723323049326,-1006.08,0.0002193,2]
[334604759,1723323049336,-500.0,0.00021953,2]
[334604760,1723323049345,-1000.0,0.00021991,2]
[334604761,1723323049355,-500.0,0.00021999,2]
[334604762,1723323049364,-372.04774803,0.00022,2]
[334604763,1723323049373,-1000.0,0.00022,2]
[334604764,1723323049386,-1052.923026,0.00022,7]
[334604765,1723323049395,-151.0,0.00022,7]
[334604766,1723323049405,-850.0,0.00022,2]
[334604767,1723323049414,-1350.2333696,0.00022038,2]
[334604768,1723323049423,-600.0,0.00022053,2]
[334604769,1723323049432,-793.0,0.00022113,2]
[334604770,1723323049441,-635.28315137,0.00022125,2]
[334604771,1723323049451,-500.0,0.00022151,2]
[334604772,1723323049460,-500.0,0.00022175,2]
[334604773,1723323049472,-1000.0,0.00022178,2]
[334604774,1723323049482,-500.0,0.00022197,2]
[334604775,1723323049490,-421.62815256,0.0002226,2]
[334604776,1723323049500,-500.0,0.0002232,2]
[334604777,1723323049510,-196.0,0.0002236,7]
[334604778,1723323049520,-1000.0,0.00022466,2]
[334604779,1723323049529,-500.0,0.00022468,2]
[334604780,1723323049539,-150.0,0.00022495,2]
[334604781,1723323049553,-500.0,0.00022495,2]
[334604782,1723323049563,-308.4,0.0002256,2]
[334604783,1723323049572,-211.0,0.0002269,2]
[334604784,1723323049581,-1000.0,0.0002269,2]
[334604785,1723323049591,-600.0,0.00022711,2]
[334604786,1723323049600,-500.0,0.00022787,2]
[334604787,1723323049609,-500.0,0.00022791,2]
[334604788,1723323049618,-500.0,0.00022802,2]
[334604789,1723323049629,-985.48707801,0.00022814,2]
[334604790,1723323049639,-500.0,0.00022853,2]
[334604791,1723323049648,-600.0,0.00022868,2]
[334604792,1723323049657,-500.0,0.0002288,2]
[334604793,1723323049668,-600.0,0.0002292,2]
[334604794,1723323049677,-89979.09,0.0002295,2]
[334604795,1723323049686,-500.0,0.00022976,2]
[334604796,1723323049695,-500.0,0.00022982,2]
[334604797,1723323049705,-500.0,0.00022996,2]
[334604798,1723323049714,-500.0,0.00022999,2]
[334604799,1723323049723,-20051.56058245,0.00023,7]
[334604800,1723323049733,-1000.0,0.00023,2]
[334604801,1723323049743,-1000.0,0.00023,3]
[334604802,1723323049753,-159372.12119613,0.00023,2]
[334604803,1723323049762,-200.0,0.00023,2]
[334604804,1723323049772,-500.0,0.00023005,2]
[334604805,1723323049781,-500.0,0.00023014,2]
[334604806,1723323049790,-362.75394726,0.00023021,2]
[334604807,1723323049800,-500.0,0.00023023,2]
[334604808,1723323049810,-500.0,0.00023031,2]
[334604809,1723323049819,-500.0,0.0002304,2]
[334604810,1723323049829,-500.0,0.00023049,2]
[334604811,1723323049838,-500.0,0.00023058,2]
[334604812,1723323049848,-500.0,0.00023067,2]
[334604813,1723323049857,-150.0,0.00023071,2]
[334604814,1723323049866,-500.0,0.00023075,2]
[334604815,1723323049876,-500.0,0.00023084,2]
[334604816,1723323049886,-1006.08,0.00023085,2]
[334604817,1723323049895,-500.0,0.00023085,2]
[334604818,1723323049904,-500.0,0.0002309,2]
[334604819,1723323049915,-500.0,0.00023093,2]
[334604820,1723323049924,-500.0,0.00023102,2]
[334604821,1723323049935,-500.0,0.00023111,2]
[334604822,1723323049944,-500.0,0.00023119,2]
[334604823,1723323049953,-500.0,0.00023128,2]
[334604824,1723323049963,-1000.0,0.00023132,2]
[334604825,1723323049973,-1000.0,0.00023135,2]
[334604826,1723323049983,-500.0,0.00023137,2]
[334604827,1723323049992,-500.0,0.00023146,2]
[334604828,1723323050001,-500.0,0.00023155,2]
[334604829,1723323050011,-500.0,0.00023157,2]
[334604830,1723323050020,-500.0,0.00023163,2]
[334604831,1723323050030,-500.0,0.00023172,2]
[334604832,1723323050041,-500.0,0.00023181,2]
[334604833,1723323050051,-500.0,0.00023188,2]
[334604834,1723323050060,-500.0,0.0002319,2]
[334604835,1723323050069,-500.0,0.00023199,2]
[334604836,1723323050080,-180.0,0.00023205,2]
[334604837,1723323050089,-500.0,0.00023207,2]
[334604838,1723323050099,-1000.0,0.00023214,2]
[334604839,1723323050108,-500.0,0.00023216,2]
[334604840,1723323050118,-1000.0,0.00023217,2]
[334604841,1723323050127,-793.0,0.00023219,2]
[334604842,1723323050138,-500.0,0.00023225,2]
[334604843,1723323050147,-500.0,0.00023234,2]
[334604844,1723323050156,-500.0,0.00023243,2]
[334604845,1723323050165,-1000.0,0.00023248,2]
[334604846,1723323050174,-500.0,0.00023251,2]
[334604847,1723323050184,-500.0,0.0002326,2]
[334604848,1723323050193,-500.0,0.00023269,2]
[334604849,1723323050203,-500.0,0.00023278,2]
[334604850,1723323050212,-1000.0,0.00023285,2]
[334604851,1723323050221,-500.0,0.00023287,2]
[334604852,1723323050231,-1401.50338274,0.00023287,5]
[334604853,1723323050241,-2480.4158377,0.00023287,5]
[334604854,1723323050250,-5296.50851357,0.00023287,5]
[334604855,1723323050260,-151.0,0.00023288,7]
[334604856,1723323050269,-151.0,0.00023288,7]
[334604857,1723323050279,-151.0,0.00023288,7]
[334604858,1723323050288,-151.0,0.00023288,7]
[334604859,1723323050298,-193.320774,0.00023288,7]
[334604860,1723323050308,-500.0,0.00023295,2]
[334604861,1723323050317,-956.86551719,0.000233,2]
[334604862,1723323050327,-500.0,0.00023304,2]
[334604863,1723323050336,-500.0,0.00023313,2]
[334604864,1723323050345,-500.0,0.00023322,2]
[334604865,1723323050354,-500.0,0.00023331,2]
[334604866,1723323050364,-500.0,0.00023339,2]
[334604867,1723323050373,-500.0,0.00023348,2]
[334604868,1723323050383,-600.0,0.00023355,2]
[334604869,1723323050392,-500.0,0.00023357,2]
[334604870,1723323050402,-500.0,0.00023366,2]
[334604871,1723323050412,-500.0,0.00023375,2]
[334604872,1723323050422,-500.0,0.00023383,2]
[334604873,1723323050431,-914.94607,0.0002339,2]
[334604874,1723323050442,-500.0,0.00023392,2]
[334604875,1723323050451,-500.0,0.00023399,2]
[334604876,1723323050461,-599.866919,0.000234,2]
[334604877,1723323050473,-500.0,0.00023401,2]
[334604878,1723323050484,-1000.0,0.00023403,2]
[334604879,1723323050494,-500.0,0.00023406,2]
[334604880,1723323050503,-500.0,0.0002341,2]
[334604881,1723323050514,-500.0,0.00023419,2]
[334604882,1723323050524,-500.0,0.00023427,2]
[334604883,1723323050534,-500.0,0.00023436,2]
[334604884,1723323050544,-152.0,0.00023443,4]
[334604885,1723323050555,-500.0,0.00023445,2]
[334604886,1723323050565,-500.0,0.00023454,2]
[334604887,1723323050575,-211.0,0.0002346,2]
[334604888,1723323050585,-500.0,0.00023461,2]
[334604889,1723323050595,-500.0,0.00023463,2]
[334604890,1723323050605,-500.0,0.00023468,2]
[334604891,1723323050614,-500.0,0.00023471,2]
[334604892,1723323050625,-500.0,0.00023476,2]
[334604893,1723323050635,-500.0,0.0002348,2]
[334604894,1723323050644,-500.0,0.00023489,2]
[334604895,1723323050654,-500.0,0.00023498,2]
[334604896,1723323050664,-500.0,0.00023507,2]
[334604897,1723323050674,-500.0,0.00023508,2]
[334604898,1723323050683,-500.0,0.00023515,2]
[334604899,1723323050692,-500.0,0.00023524,2]
[334604900,1723323050701,-500.0,0.00023533,2]
[334604901,1723323050711,-1931.9697509,0.0002354,2]
[334604902,1723323050721,-500.0,0.00023542,2]
[334604903,1723323050731,-500.0,0.00023551,2]
[334604904,1723323050741,-500.0,0.00023559,2]
[334604905,1723323050750,-500.0,0.00023568,2]
[334604906,1723323050760,-500.0,0.00023577,2]
[334604907,1723323050770,-500.0,0.00023586,2]
[334604908,1723323050779,-500.0,0.00023595,2]
[334604909,1723323050788,-500.0,0.00023603,2]
[334604910,1723323050798,-500.0,0.00023612,2]
[334604911,1723323050808,-500.0,0.00023621,2]
[334604912,1723323050817,-500.0,0.0002363,2]
[334604913,1723323050827,-500.0,0.00023639,2]
[334604914,1723323050837,-500.0,0.00023647,2]
[334604915,1723323050846,-150.0,0.00023648,2]
[334604916,1723323050856,-500.0,0.00023656,2]
[334604917,1723323050865,-500.0,0.00023665,2]
[334604918,1723323050881,-1001.10763117,0.0002367,20]
[334604919,1723323050890,-1000.0,0.0002374,2]
[334604920,1723323050899,-500.0,0.00023827,2]
[334604921,1723323050909,-404.95213795,0.00023873,2]
[334604922,1723323050918,-500.0,0.00023891,2]
[334604923,1723323050927,-666.213645,0.00023906,2]
[334604924,1723323050937,-314.24633552,0.00023919,2]
[334604925,1723323050946,-335304.0,0.00023922,2]
[334604926,1723323050955,-500.0,0.00023927,2]
[334604927,1723323050965,-407.4248623,0.00023964,2]
[334604928,1723323050975,-400.0,0.0002397,2]
[334604929,1723323050984,-21083.62400282,0.0002398,2]
[334604930,1723323050993,-2000.0,0.00024,2]
[334604931,1723323051002,-859.0,0.00024,2]
[334604932,1723323051011,-500.0,0.00024,2]
[334604933,1723323051021,-297.27363538,0.00024,2]
[334604934,1723323051030,-300.57219826,0.00024,2]
[334604935,1723323051040,-21791.0,0.00024,2]
[334604936,1723323051048,-1000.0,0.00024,3]
[334604937,1723323051058,-12072.29489664,0.00024,2]
[334604938,1723323051067,-1427.0719166,0.00024,2]
[334604939,1723323051076,-343.14245019,0.00024,6]
[334604940,1723323051086,-500.12345578,0.00024,4]
[334604941,1723323051095,-500.12345678,0.00024,5]
[334604942,1723323051104,-4000.0,0.00024,2]
[334604943,1723323051113,-30638.8879975,0.00024,2]
[334604944,1723323051123,-1483.0,0.00024,7]
[334604945,1723323051132,-519.14393122,0.00024,2]
[334604946,1723323051141,-5000.03503,0.00024,30]
[334604947,1723323051150,-900.0,0.00024,2]
[334604948,1723323051159,-173.0,0.00024,2]
[334604949,1723323051168,-500.0,0.00024003,2]
[334604950,1723323051178,-500.0,0.00024026,2]
[334604951,1723323051187,-500.0,0.0002403,2]
[334604952,1723323051196,-640.71,0.00024036,2]
[334604953,1723323051205,-500.0,0.00024094,2]
[334604954,1723323051215,-500.0,0.00024104,2]
[334604955,1723323051224,-500.0,0.00024127,2]
[334604956,1723323051233,-500.0,0.00024149,2]
[334604957,1723323051242,-685.38867982,0.00024182,2]
[334604958,1723323051251,-3886.41916698,0.000242,2]
[334604959,1723323051260,-150.0,0.00024225,2]
[334604960,1723323051269,-211.0,0.0002423,2]
[334604961,1723323051278,-1006.08,0.0002424,2]
[334604962,1723323051287,-500.0,0.00024276,2]
[334604963,1723323051297,-23157.12288408,0.00024295,2]
[334604964,1723323051306,-459.93807679,0.000243,2]
[334604965,1723323051315,-793.0,0.0002438,2]
[334604966,1723323051324,-500.0,0.0002439,2]
[334604967,1723323051333,-712.0821961,0.0002439,2]
[334604968,1723323051342,-6649.58871289,0.00024402,2]
[334604969,1723323051351,-30707.49160993,0.00024403,2]
[334604970,1723323051360,-244.40720941,0.00024406,2]
[334604971,1723323051369,-736.82748828,0.00024407,2]
[334604972,1723323051378,-95117.41966417,0.00024407,2]
[334604973,1723323051388,-95117.41966417,0.00024409,2]
[334604974,1723323051397,-278.47074757,0.00024409,2]
[334604975,1723323051406,-736.82748828,0.00024409,2]
[334604976,1723323051415,-278.47074757,0.0002441,2]
[334604977,1723323051425,-5800.0,0.00024411,2]
[334604978,1723323051434,-6649.58871289,0.00024411,2]
[334604979,1723323051443,-736.82748828,0.00024414,2]
[334604980,1723323051452,-95117.41966417,0.00024414,2]
[334604981,1723323051461,-6649.58871289,0.00024416,2]
[334604982,1723323051472,-1500.0,0.00024418,2]
[334604983,1723323051483,-5800.0,0.00024419,2]
[334604984,1723323051492,-736.82748828,0.00024421,2]
[334604985,1723323051501,-278.47074757,0.00024421,2]
[334604986,1723323051510,-95117.41966417,0.00024425,2]
[334604987,1723323051521,-95117.41966417,0.00024425,2]
[334604988,1723323051530,-314.24633552,0.00024426,2]
[334604989,1723323051539,-5800.0,0.00024428,2]
[334604990,1723323051549,-244.40720941,0.00024428,2]
[334604991,1723323051558,-30707.49160993,0.00024429,2]
[334604992,1723323051567,-278.47074757,0.00024429,2]
[334604993,1723323051577,-988.13262529,0.00024436,2]
[334604994,1723323051585,-5800.0,0.00024436,2]
[334604995,1723323051594,-278.47074757,0.00024437,2]
[334604996,1723323051603,-95117.41966417,0.00024438,2]
[334604997,1723323051612,-6649.58871289,0.00024438,2]
[334604998,1723323051621,-30707.49160993,0.00024439,2]
[334604999,1723323051630,-244.40720941,0.00024445,2]
[334605000,1723323051641,-244.40720941,0.00024446,2]
[334605001,1723323051650,-244.40720941,0.00024451,2]
[334605002,1723323051660,-244.40720941,0.00024452,2]
[334605003,1723323051669,-30707.49160993,0.00024463,2]
[334605004,1723323051678,-6649.58871289,0.00024466,2]
[334605005,1723323051688,-30707.49160993,0.00024467,2]
[334605006,1723323051697,-30707.49160993,0.00024468,2]
[334605007,1723323051706,-244.40720941,0.00024469,2]
[334605008,1723323051716,-95117.41966417,0.00024469,2]
[334605009,1723323051725,-278.47074757,0.00024473,2]
[334605010,1723323051734,-6649.58871289,0.00024473,2]
[334605011,1723323051743,-736.82748828,0.00024474,2]
[334605012,1723323051752,-244.40720941,0.00024475,2]
[334605013,1723323051761,-30707.49160993,0.00024475,2]
[334605014,1723323051770,-278.47074757,0.00024477,2]
[334605015,1723323051779,-736.82748828,0.00024478,2]
[334605016,1723323051788,-30707.49160993,0.00024481,2]
[334605017,1723323051797,-736.82748828,0.00024486,2]
[334605018,1723323051806,-95117.41966417,0.00024486,2]
[334605019,1723323051815,-278.47074757,0.00024489,2]
[334605020,1723323051824,-6649.58871289,0.0002449,2]
[334605021,1723323051833,-736.82748828,0.00024494,2]
[334605022,1723323051842,-6649.58871289,0.00024496,2]
[334605023,1723323051851,-35365.23,0.000245,5]
[334605024,1723323051860,-495.17,0.000245,5]
[334605025,1723323051870,-300.000001,0.000245,30]
[334605026,1723323051879,-263.219741,0.000245,2]
[334605027,1723323051889,-3000.0,0.000245,2]
[334605028,1723323051898,-600.0,0.000245,2]
[334605029,1723323051907,-500.0,0.00024526,2]
[334605030,1723323051916,-600.0,0.00024545,2]
[334605031,1723323051925,-2503.4,0.00024588,2]
[334605032,1723323051935,-151.0,0.00024658,7]
[334605033,1723323051943,-151.0,0.00024658,7]
[334605034,1723323051953,-151.0,0.00024658,7]
[334605035,1723323051962,-152.651511,0.00024658,7]
[334605036,1723323051971,-18201.99643552,0.00024674,2]
[334605037,1723323051981,-600.0,0.00024684,2]
[334605038,1723323051990,-500.0,0.00024768,2]
[334605039,1723323051999,-2503.4,0.00024775,2]
[334605040,1723323052008,-3000.0,0.000248,2]
[334605041,1723323052017,-3000.0,0.000248,2]
[334605042,1723323052026,-3000.0,0.000248,2]
[334605043,1723323052035,-3000.0,0.000248,2]
[334605044,1723323052044,-3000.0,0.000248,2]
[334605045,1723323052053,-3000.0,0.000248,2]
[334605046,1723323052063,-3000.0,0.000248,2]
[334605047,1723323052072,-3000.0,0.000248,2]
[334605048,1723323052083,-3000.0,0.000248,2]
[334605049,1723323052093,-3000.0,0.000248,2]
[334605050,1723323052102,-1739.2573753,0.000248,7]
[334605051,1723323052111,-25000.0,0.000248,2]
[334605052,1723323052120,-150.0,0.00024802,2]
[334605053,1723323052130,-995.82901535,0.00024802,2]
[334605054,1723323052140,-500.0,0.00024803,2]
[334605055,1723323052267,-13138.00058997,0.00024825,2]
[334605056,1723323052293,-500.0,0.00024831,2]
[334605057,1723323052304,-1000.0,0.00024865,2]
[334605058,1723323052314,-353.91079,0.0002489,2]
[334605059,1723323052324,-9828.17768143,0.000249,2]
[334605060,1723323052335,-5716.74196193,0.000249,5]
[334605061,1723323052344,-10000.0,0.000249,2]
[334605062,1723323052355,-1002.4823349,0.000249,30]
[334605063,1723323052366,-174.91802156,0.000249,2]
[334605064,1723323052377,-160.9,0.000249,31]
[334605065,1723323052390,-160.9,0.000249,31]
[334605066,1723323052398,-160.9,0.000249,31]
[334605067,1723323052407,-160.9,0.000249,31]
[334605068,1723323052417,-160.9,0.000249,31]
[334605069,1723323052427,-362.75394726,0.000249,2]
[334605070,1723323052437,-164.9525309,0.000249,2]
[334605071,1723323052446,-741.72922737,0.000249,2]
[334605072,1723323052455,-561.1028641,0.000249,4]
[334605073,1723323052464,-1000.0,0.00024922,2]
[334605074,1723323052477,-600.0,0.00024939,2]
[334605075,1723323052486,-500.0,0.0002494,2]
[334605076,1723323052495,-500.0,0.00024957,2]
[334605077,1723323052504,-400.0,0.0002497,2]
[334605078,1723323052515,-1200.0,0.00024973,2]
[334605079,1723323052524,-410.0,0.00024986,20]
[334605080,1723323052533,-500.0,0.00024988,2]
[334605081,1723323052542,-500.0,0.0002499,2]
[334605082,1723323052555,-500.0,0.00024994,2]
[334605083,1723323052564,-942.73900656,0.00024997,2]
[334605084,1723323052574,-93097.28819309,0.00024999,2]
[334605085,1723323052583,-24233.1877258,0.00024999,2]
[334605086,1723323052593,-202.9157193,0.00024999,2]
[334605087,1723323052602,-9304.86120705,0.00025,2]
[334605088,1723323052611,-2883276.55560438,0.00025,2]
[334605089,1723323052764,-7457.2856901,0.00025,2]
[334605090,1723323052775,-815.0,0.00025,2]
[334605091,1723323052787,-428.61941707,0.00025,2]
[334605092,1723323052799,-310.24010705,0.00025,2]
[334605093,1723323052844,-256.3580766,0.00025,2]
[334605094,1723323052856,-1809.95055616,0.00025,2]
[334605095,1723323052873,-522.88,0.00012,2]
[334605096,1723323052883,-876.97886565,0.00025,2]
[334605097,1723323052899,-105776.26149767,0.00025,2]
[334605098,1723323052910,-231066.32492653,0.00025,2]
[334605099,1723323052935,-522.88,0.00012,2]
[334605100,1723323052944,-1175404.30918999,0.00025,2]
[334605101,1723323052956,-961.27203814,0.00025,2]
[334605102,1723323053922,-522.88,0.00012,2]
[334605103,1723323053930,-67.449,0.00012,2]
[334605104,1723323054132,-455.431,0.00012,2]
[334605105,1723323054142,-522.88,0.00012,2]
[334605106,1723323054151,-522.88,0.00012,2]
[334605107,1723323054160,-522.88,0.00012,2]
[334605108,1723323054169,-64.50780906,0.00012,2]
[334605109,1723323054180,-458.37219094,0.00012,2]
[334605110,1723323054189,-522.88,0.00012,2]
[334605111,1723323054198,-489.45136456,0.00012,2]
[334605112,1723323054209,-33.42863544,0.00012,2]
[334605113,1723323054218,-522.88,0.00012,2]
[334605114,1723323054227,-522.88,0.00012,2]
[334605115,1723323054235,-522.88,0.00012,2]
[334605116,1723323054244,-522.88,0.00012,2]
[334605117,1723323054254,-522.88,0.00012,2]
[334605118,1723323054263,-522.88,0.00012,2]
[334605119,1723323054272,-522.88,0.00012,2]
[334605120,1723323054281,-522.88,0.00012,2]
[334605121,1723323054290,-522.88,0.00012,2]
[334605122,1723323054299,-522.88,0.00012,2]
[334605123,1723323054308,-522.88,0.00012,2]
[334605124,1723323054318,-312.31467456,0.00012566,2]
[334605125,1723323054326,-312.31467446,0.00013447,2]
[334605126,1723323054336,-152.213,0.0001399,2]
[334605127,1723323054345,-5089.26039628,0.00025,2]
[334605128,1723323054356,-2547.92756546,0.00025,2]
[334605129,1723323054372,-522.88,0.00012,2]
[334605130,1723323054381,-2376.19416389,0.00025,2]
[334605131,1723323054393,-3144.75596649,0.00025,2]
[334605132,1723323054404,-8328.27221717,0.00025,2]
[334605133,1723323054414,-379.8763603,0.00025,2]
[334605134,1723323064576,150.0,0.00011,2]
[334605135,1723323092169,1012.46348928,0.0001078,2]
[334605136,1723323166022,170.43425804,0.00011,2]
[334605137,1723323168290,1366.31449647,0.0001078,2]
[334605138,1723323170710,180.0,0.00011,2]
[334605139,1723323187577,174.42,0.00011,2]
[334605140,1723323197395,1082.58943906,0.0001078,2]
[334605141,1723323441113,423.05,9.61e-05,2]
[334605147,1723323927088,401.89,9.289e-05,2]
[334605157,1723324232208,-300.0,0.00011004,2]
[334605158,1723324232218,-2700.0,0.00011005,2]
[334605159,1723324232231,-2999.0,0.00011005,2]
[334605160,1723324232276,-5831.44471884,0.00011005,2]
[334605161,1723324232287,-283.80607806,0.00011005,2]
[334605162,1723324232299,-4891.6063031,0.00011005,2]
[334605163,1723324232309,-3334.9517502,0.00011095,2]
[334605164,1723324232320,-420.98804803,0.00011095,2]
[334605165,1723324232339,-397.82076205,0.00011095,2]
[334605166,1723324232355,-270.26587227,0.00011095,2]
[334605167,1723324232366,-271.05628702,0.00011095,2]
[334605168,1723324232378,-1513.59237538,0.00011095,2]
[334605169,1723324232387,-7847.29292273,0.00011105,2]
[334605170,1723324232410,-1329.28402773,0.00011105,2]
[334605171,1723324232466,-2456.7,0.00011105,2]
[334605172,1723324232477,-6158.58782475,0.00011105,2]
[334605173,1723324232487,-216.48895648,0.00011105,2]
[334605174,1723324232496,-13611.17716538,0.00011105,2]
[334605175,1723324232507,-1869.73706162,0.00011105,2]
[334605176,1723324232517,-2167.03245439,0.00011156,2]
[334605186,1723324238390,-1877.74094177,0.00011156,2]
[334605187,1723324238400,-28724.15171052,0.00011186,2]
[334605188,1723324238412,-414.74931863,0.00011186,2]
[334605189,1723324238445,-6583.53828631,0.00011186,2]
[334605190,1723324238455,-4911.46171369,0.00011186,2]
[334605191,1723324238467,-363.72344194,0.00011186,2]
[334605192,1723324238726,-955.27057878,0.00011186,2]
[334605224,1723324240372,-19088.12054536,0.00011186,2]
[334605225,1723324240382,-10532.64512729,0.00011186,2]
[334605226,1723324240392,-526.58806396,0.00011186,2]
[334605227,1723324240401,-3979.10104429,0.00011205,2]
[334605228,1723324240411,-9902.3107994,0.00011206,2]
[334605229,1723324240421,-9902.3107994,0.00011206,2]
[334605230,1723324240430,-303.90469939,0.00011206,2]
[334605231,1723324240440,-2145.62895141,0.00011206,2]
[334605232,1723324240449,-303.88984754,0.00011206,2]
[334605233,1723324240460,-1841.73910387,0.00011206,2]
[334605234,1723324240469,-350.15,0.0001123,2]
[334605235,1723324240479,-831.13,0.00011249,2]
[334605236,1723324240489,-250.0,0.00011256,2]
[334605237,1723324240498,-499.99,0.00011259,2]
[334605238,1723324240508,-261.25595185,0.00011259,2]
[334605239,1723324240517,-1949.97871262,0.00011324,2]
[334605240,1723324240546,-4583.48031957,0.00011324,2]
[334605241,1723324240556,-6533.45903219,0.00011324,2]
[334605242,1723324240565,-2006.52449047,0.00011324,2]
[334605243,1723324240601,-656.60656736,0.00011324,2]
[334605244,1723324240612,-565.48,0.00011324,2]
[334605255,1723324243274,-378.703701,0.00011324,2]
[334605256,1723324243286,-3392.68524117,0.00011324,2]
[334605257,1723324243296,-750.62475883,0.00011525,2]
[334605258,1723324243309,-443.4506406,0.00011525,2]
[334605260,1723324243329,-103.98574705,0.00011525,2]
[334605262,1723324243339,-401.89,0.00011553,2]
[334605264,1723324243349,-8994.60984429,0.0001185,2]